fUST/lending_fUST_20250102
["ID","MTS","AMOUNT","RATE_DAILY","PERIOD"]
[347437084,1735809053285,-150.23,0.00021643,3]
[347437085,1735809053294,-173.947745,0.00021643,2]
[347437086,1735809053304,-173.947745,0.00021643,2]
[347437087,1735809053313,-594.63404646,0.00021643,3]
[347437088,1735809053323,-500.0,0.00021643,3]
[347437089,1735809053331,-524.85,0.00021643,3]
[347437090,1735809053340,-500.0,0.00021643,3]
[347437091,1735809053350,-500.0,0.00021643,3]
[347437092,1735809053358,-500.0,0.00021643,3]
[347437093,1735809053370,-500.0,0.00021643,3]
[347437094,1735809053378,-500.0,0.00021643,3]
[347437095,1735809053388,-500.0,0.00021643,3]
[347437096,1735809053398,-500.0,0.00021643,3]
[347437097,1735809053407,-500.0,0.00021643,3]
[347437098,1735809053416,-576.58,0.00021643,3]
[347437099,1735809053427,-500.0,0.00021643,3]
[347437100,1735809053437,-500.0,0.00021643,3]
[347437101,1735809053446,-500.0,0.00021643,3]
[347437102,1735809053456,-500.0,0.00021643,3]
[347437103,1735809053466,-500.0,0.00021643,3]
[347437104,1735809053476,-502.76,0.00021643,3]
[347437105,1735809053485,-500.0,0.00021643,3]
[347437106,1735809053494,-500.0,0.00021643,3]
[347437107,1735809053504,-12394.96,0.00021643,3]
[347437108,1735809053513,-1185.37,0.00021643,3]
[347437109,1735809053523,-500.0,0.00021643,3]
[347437110,1735809053532,-500.0,0.00021643,2]
[347437111,1735809053541,-642.44,0.00021643,3]
[347437112,1735809053550,-500.0,0.00021643,3]
[347437113,1735809053559,-801.92,0.00021643,3]
[347437114,1735809053568,-37500.09,0.00021643,3]
[347437115,1735809053579,-747.85,0.00021643,3]
[347437116,1735809053588,-151.0,0.00021643,2]
[347437117,1735809053597,-554.82,0.00021643,3]
[347437118,1735809053607,-1603.42,0.00021643,3]
[347437119,1735809053618,-151.0,0.00021643,2]
[347437120,1735809053627,-2901.64,0.00021643,3]
[347437121,1735809053637,-3232.55,0.00021643,3]
[347437122,1735809053646,-727.24,0.00021643,3]
[347437123,1735809053655,-557.23,0.00021643,2]
[347437124,1735809053665,-1238.4,0.00021643,3]
[347437125,1735809053675,-601.84,0.00021643,3]
[347437126,1735809053684,-538.01,0.00021643,3]
[347437127,1735809053694,-500.0,0.00021643,3]
[347437128,1735809053705,-500.0,0.00021643,3]
[347437129,1735809053714,-499.0,0.00021643,4]
[347437130,1735809053724,-500.0,0.00021643,3]
[347437131,1735809053734,-752.69,0.00021643,3]
[347437132,1735809053743,-861.3,0.00021643,3]
[347437133,1735809053753,-500.0,0.00021643,3]
[347437134,1735809053763,-932.32,0.00021643,3]
[347437135,1735809053772,-500.0,0.00021643,3]
[347437136,1735809053782,-639.49,0.00021643,3]
[347437137,1735809053791,-500.0,0.00021643,3]
[347437138,1735809053801,-151.0,0.00021643,2]
[347437139,1735809053810,-666.71,0.00021643,3]
[347437140,1735809053819,-648.33,0.00021643,3]
[347437141,1735809053829,-500.0,0.00021643,3]
[347437142,1735809053839,-500.0,0.00021643,3]
[347437143,1735809053848,-1079.84,0.00021643,3]
[347437144,1735809053857,-500.0,0.00021643,3]
[347437145,1735809053867,-583.84,0.00021643,3]
[347437146,1735809053877,-500.0,0.00021643,3]
[347437147,1735809053886,-355.161962,0.00021671,2]
[347437148,1735809053896,-785.72718553,0.00021693,7]
[347437149,1735809053905,-151.0,0.00021715,6]
[347437150,1735809053915,-160.0,0.00021732,4]
[347437151,1735809053924,-162.10846113,0.00021754,7]
[347437152,1735809054035,-785.72718553,0.00021805,7]
[347437153,1735809054045,-2100.5594822,0.00021818,2]
[347437154,1735809054055,-355.161962,0.00021863,2]
[347437155,1735809054064,-151.0,0.0002191,2]
[347437156,1735809054073,-151.0,0.0002191,2]
[347437157,1735809054083,-151.0,0.0002191,2]
[347437158,1735809054092,-151.0,0.0002191,2]
[347437159,1735809054101,-261.941508,0.0002191,2]
[347437160,1735809054111,-151.0,0.00021916,2]
[347437161,1735809054123,-151.0,0.00021916,2]
[347437162,1735809054132,-500.0,0.00021916,3]
[347437163,1735809054141,-785.72718553,0.00021917,7]
[347437164,1735809054151,-150.23,0.00021917,3]
[347437165,1735809054160,-173.947745,0.00021917,2]
[347437166,1735809054169,-173.947745,0.00021917,2]
[347437167,1735809054178,-151.0,0.00021917,2]
[347437168,1735809054189,-500.0,0.00021917,3]
[347437169,1735809054199,-500.0,0.00021917,3]
[347437170,1735809054209,-302.63296168,0.00021917,3]
[347437171,1735809054218,-411.3182887,0.00021917,2]
[347437172,1735809054227,-396.79733406,0.00021917,3]
[347437173,1735809054237,-524.85,0.00021917,3]
[347437174,1735809054246,-1000.0,0.00021917,5]
[347437175,1735809054255,-1000.0,0.00021917,5]
[347437176,1735809054267,-1000.0,0.00021917,5]
[347437177,1735809054276,-1000.0,0.00021917,5]
[347437178,1735809054285,-897.35473751,0.00021917,5]
[347437179,1735809054295,-500.0,0.00021917,3]
[347437180,1735809054304,-500.0,0.00021917,3]
[347437181,1735809054313,-500.0,0.00021917,3]
[347437182,1735809054322,-500.0,0.00021917,3]
[347437183,1735809054332,-500.0,0.00021917,3]
[347437184,1735809054341,-500.0,0.00021917,3]
[347437185,1735809054350,-500.0,0.00021917,3]
[347437186,1735809054360,-390.56467289,0.00021917,3]
[347437187,1735809054370,-576.58,0.00021917,3]
[347437188,1735809054379,-500.0,0.00021917,3]
[347437189,1735809054389,-500.0,0.00021917,3]
[347437190,1735809054400,-261.52741993,0.00021917,3]
[347437191,1735809054409,-500.0,0.00021917,3]
[347437192,1735809054418,-500.0,0.00021917,3]
[347437193,1735809054427,-502.76,0.00021917,3]
[347437194,1735809054437,-500.0,0.00021917,3]
[347437195,1735809054447,-500.0,0.00021917,3]
[347437196,1735809054456,-12394.96,0.00021917,3]
[347437197,1735809054466,-1185.37,0.00021917,3]
[347437198,1735809054475,-500.0,0.00021917,3]
[347437199,1735809054485,-1000.0,0.00021917,2]
[347437200,1735809054495,-1000.0,0.00021917,2]
[347437201,1735809054504,-1000.0,0.00021917,2]
[347437202,1735809054514,-500.0,0.00021917,2]
[347437203,1735809054523,-1000.0,0.00021917,2]
[347437204,1735809054533,-1000.0,0.00021917,2]
[347437205,1735809054543,-1000.0,0.00021917,2]
[347437206,1735809054552,-1000.0,0.00021917,2]
[347437207,1735809054562,-1000.0,0.00021917,2]
[347437208,1735809054571,-1000.0,0.00021917,2]
[347437209,1735809054581,-1000.0,0.00021917,2]
[347437210,1735809054590,-642.44,0.00021917,3]
[347437211,1735809054599,-500.0,0.00021917,3]
[347437212,1735809054609,-801.92,0.00021917,3]
[347437213,1735809054618,-37500.09,0.00021917,3]
[347437214,1735809054628,-747.85,0.00021917,3]
[347437215,1735809054638,-554.82,0.00021917,3]
[347437216,1735809054647,-1603.42,0.00021917,3]
[347437217,1735809054656,-2901.64,0.00021917,3]
[347437218,1735809054665,-3232.55,0.00021917,3]
[347437219,1735809054675,-727.24,0.00021917,3]
[347437220,1735809054684,-557.23,0.00021917,2]
[347437221,1735809054694,-1238.4,0.00021917,3]
[347437222,1735809054703,-601.84,0.00021917,3]
[347437223,1735809054712,-538.01,0.00021917,3]
[347437224,1735809054722,-500.0,0.00021917,3]
[347437225,1735809054732,-500.0,0.00021917,3]
[347437226,1735809054741,-500.0,0.00021917,3]
[347437227,1735809054751,-752.69,0.00021917,3]
[347437228,1735809054760,-861.3,0.00021917,3]
[347437229,1735809054770,-500.0,0.00021917,3]
[347437230,1735809054779,-932.32,0.00021917,3]
[347437231,1735809054789,-500.0,0.00021917,3]
[347437232,1735809054799,-639.49,0.00021917,3]
[347437233,1735809054808,-500.0,0.00021917,3]
[347437234,1735809054817,-666.71,0.00021917,3]
[347437235,1735809054827,-648.33,0.00021917,3]
[347437236,1735809054836,-500.0,0.00021917,3]
[347437237,1735809054845,-500.0,0.00021917,3]
[347437238,1735809054855,-1079.84,0.00021917,3]
[347437239,1735809054864,-500.0,0.00021917,3]
[347437240,1735809054873,-583.84,0.00021917,3]
[347437241,1735809054882,-500.0,0.00021917,3]
[347437242,1735809054892,-1282.9626535,0.00021918,7]
[347437243,1735809054901,-173.947745,0.00021918,7]
[347437244,1735809054910,-173.947745,0.00021918,7]
[347437245,1735809054920,-219.01009929,0.00021918,3]
[347437246,1735809054930,-500.0,0.00021918,3]
[347437247,1735809054939,-150.23,0.00021918,2]
[347437248,1735809054949,-162.10846113,0.00021957,7]
[347437249,1735809054958,-2100.55948211,0.00021963,2]
[347437250,1735809054967,-1070.11754066,0.00021969,2]
[347437251,1735809054976,-11841.83458482,0.00022,15]
[347437252,1735809054986,-161.69369733,0.00022,10]
[347437253,1735809054995,-904.17,0.00022,2]
[347437254,1735809055004,-1000.0,0.00022,2]
[347437255,1735809055013,-1000.0,0.00022,2]
[347437256,1735809055022,-151.0,0.00022,2]
[347437257,1735809055032,-498.501658,0.00022,7]
[347437258,1735809055041,-498.501658,0.00022,7]
[347437259,1735809055050,-151.0,0.00022,7]
[347437260,1735809055059,-150.0,0.00022,2]
[347437261,1735809055069,-552.0,0.00022,2]
[347437262,1735809055078,-37283.24078776,0.0002201,16]
[347437263,1735809055088,-173.947745,0.0002201,7]
[347437264,1735809055098,-173.947746,0.0002201,7]
[347437265,1735809055107,-151.0,0.0002201,7]
[347437266,1735809055117,-151.0,0.0002201,7]
[347437267,1735809055127,-217.666756,0.0002201,7]
[347437268,1735809055137,-151.0,0.0002201,7]
[347437269,1735809055146,-151.0,0.00022011,2]
[347437270,1735809055155,-151.0,0.00022011,2]
[347437271,1735809055165,-151.0,0.00022011,2]
[347437272,1735809055174,-151.0,0.00022011,2]
[347437273,1735809055184,-151.0,0.00022011,2]
[347437274,1735809055193,-151.0,0.00022011,2]
[347437275,1735809055202,-151.0,0.00022011,2]
[347437276,1735809055211,-151.0,0.00022011,2]
[347437277,1735809055221,-174.45,0.00022011,2]
[347437278,1735809055230,-151.0,0.00022026,6]
[347437279,1735809055240,-785.72718553,0.00022029,7]
[347437280,1735809055249,-151.0,0.00022049,2]
[347437281,1735809055258,-151.0,0.00022049,2]
[347437282,1735809055267,-151.0,0.00022049,2]
[347437283,1735809055277,-151.0,0.00022049,2]
[347437284,1735809055286,-151.0,0.00022049,2]
[347437285,1735809055295,-151.0,0.00022049,2]
[347437286,1735809055304,-151.0,0.00022049,2]
[347437287,1735809055314,-151.0,0.00022049,2]
[347437288,1735809055323,-151.0,0.00022049,2]
[347437289,1735809055333,-151.0,0.00022049,2]
[347437290,1735809055343,-151.0,0.00022049,2]
[347437291,1735809055352,-151.0,0.00022049,2]
[347437292,1735809055361,-151.0,0.00022049,2]
[347437293,1735809055371,-163.0,0.00022049,2]
[347437294,1735809055381,-151.0,0.00022049,2]
[347437295,1735809055393,-163.0,0.00022049,2]
[347437296,1735809055403,-151.0,0.00022049,2]
[347437297,1735809055412,-163.72,0.00022049,2]
[347437298,1735809055421,-151.0,0.00022049,2]
[347437299,1735809055430,-151.0,0.00022049,2]
[347437300,1735809055441,-151.0,0.00022049,2]
[347437301,1735809055450,-151.0,0.00022049,2]
[347437302,1735809055459,-151.0,0.00022049,2]
[347437303,1735809055469,-279.0,0.00022049,2]
[347437304,1735809055478,-355.161962,0.00022055,2]
[347437305,1735809055487,-2100.55948211,0.00022109,2]
[347437306,1735809055497,-785.72718553,0.0002214,7]
[347437307,1735809055506,-162.10846113,0.00022161,7]
[347437308,1735809055516,-500.0,0.0002219,3]
[347437309,1735809055525,-222.14021168,0.00022191,3]
[347437310,1735809055534,-156.013634,0.00022191,7]
[347437311,1735809055543,-524.85,0.00022191,3]
[347437312,1735809055553,-500.0,0.00022191,3]
[347437313,1735809055562,-500.0,0.00022191,3]
[347437314,1735809055571,-500.0,0.00022191,3]
[347437315,1735809055580,-500.0,0.00022191,3]
[347437316,1735809055589,-500.0,0.00022191,3]
[347437317,1735809055599,-500.0,0.00022191,3]
[347437318,1735809055608,-500.0,0.00022191,3]
[347437319,1735809055618,-576.58,0.00022191,3]
[347437320,1735809055628,-500.0,0.00022191,3]
[347437321,1735809055637,-500.0,0.00022191,3]
[347437322,1735809055647,-500.0,0.00022191,3]
[347437323,1735809055656,-500.0,0.00022191,3]
[347437324,1735809055665,-502.76,0.00022191,3]
[347437325,1735809055674,-500.0,0.00022191,3]
[347437326,1735809055683,-500.0,0.00022191,3]
[347437327,1735809055692,-12394.96,0.00022191,3]
[347437328,1735809055702,-1185.37,0.00022191,3]
[347437329,1735809055711,-500.0,0.00022191,3]
[347437330,1735809055720,-447.18477515,0.00022191,2]
[347437331,1735809055730,-642.44,0.00022191,3]
[347437332,1735809055739,-500.0,0.00022191,3]
[347437333,1735809055749,-801.92,0.00022191,3]
[347437334,1735809055758,-37500.09,0.00022191,3]
[347437335,1735809055768,-747.85,0.00022191,3]
[347437336,1735809055777,-151.0,0.00022191,7]
[347437337,1735809055786,-554.82,0.00022191,3]
[347437338,1735809055795,-1603.42,0.00022191,3]
[347437339,1735809055805,-2901.64,0.00022191,3]
[347437340,1735809055814,-3232.55,0.00022191,3]
[347437341,1735809055823,-727.24,0.00022191,3]
[347437342,1735809055833,-557.23,0.00022191,2]
[347437343,1735809055843,-1238.4,0.00022191,3]
[347437344,1735809055852,-601.84,0.00022191,3]
[347437345,1735809055861,-538.01,0.00022191,3]
[347437346,1735809055870,-500.0,0.00022191,3]
[347437347,1735809055879,-500.0,0.00022191,3]
[347437348,1735809055888,-600.18032266,0.00022191,3]
[347437349,1735809055897,-752.69,0.00022191,3]
[347437350,1735809055907,-861.3,0.00022191,3]
[347437351,1735809055916,-500.0,0.00022191,3]
[347437352,1735809055925,-932.32,0.00022191,3]
[347437353,1735809055935,-500.0,0.00022191,3]
[347437354,1735809055944,-639.49,0.00022191,3]
[347437355,1735809055953,-500.0,0.00022191,3]
[347437356,1735809055963,-151.0,0.00022191,7]
[347437357,1735809055972,-666.71,0.00022191,3]
[347437358,1735809055981,-648.33,0.00022191,3]
[347437359,1735809055991,-453.99557065,0.00022191,3]
[347437360,1735809056000,-500.0,0.00022191,3]
[347437361,1735809056009,-1079.84,0.00022191,3]
[347437362,1735809056018,-500.0,0.00022191,3]
[347437363,1735809056027,-583.84,0.00022191,3]
[347437364,1735809056037,-500.0,0.00022191,3]
[347437365,1735809056046,-552.0,0.00022192,2]
[347437366,1735809056055,-500.0,0.00022192,3]
[347437367,1735809056064,-151.0,0.00022192,7]
[347437368,1735809056073,-151.0,0.00022192,7]
[347437369,1735809056082,-151.0,0.00022192,7]
[347437370,1735809056091,-785.72718553,0.00022252,7]
[347437371,1735809056101,-2100.55948211,0.00022254,2]
[347437372,1735809056110,-151.0,0.00022336,7]
[347437373,1735809056120,-782.47648865,0.00022343,2]
[347437374,1735809056129,-785.72,0.00022364,7]
[347437375,1735809056138,-162.1,0.00022364,7]
[347437376,1735809056147,-2100.55948211,0.00022399,2]
[347437377,1735809056156,-500.0,0.00022464,3]
[347437378,1735809056165,-524.85,0.00022465,3]
[347437379,1735809056174,-500.0,0.00022465,3]
[347437380,1735809056183,-500.0,0.00022465,3]
[347437381,1735809056193,-500.0,0.00022465,3]
[347437382,1735809056202,-500.0,0.00022465,3]
[347437383,1735809056212,-500.0,0.00022465,3]
[347437384,1735809056221,-500.0,0.00022465,3]
[347437385,1735809056230,-500.0,0.00022465,3]
[347437386,1735809056239,-151.0,0.00022465,7]
[347437387,1735809056248,-415.95329512,0.00022465,3]
[347437388,1735809056360,-160.62670488,0.00022465,3]
[347437389,1735809056370,-500.0,0.00022465,3]
[347437390,1735809056380,-500.0,0.00022465,3]
[347437391,1735809056392,-500.0,0.00022465,3]
[347437392,1735809056402,-500.0,0.00022465,3]
[347437393,1735809056509,-152.900636,0.00022465,7]
[347437394,1735809056519,-502.76,0.00022465,3]
[347437395,1735809056528,-500.0,0.00022465,3]
[347437396,1735809056538,-500.0,0.00022465,3]
[347437397,1735809056547,-12394.96,0.00022465,3]
[347437398,1735809056556,-1185.37,0.00022465,3]
[347437399,1735809056566,-500.0,0.00022465,3]
[347437400,1735809056575,-642.44,0.00022465,3]
[347437401,1735809056585,-500.0,0.00022465,3]
[347437402,1735809056594,-801.92,0.00022465,3]
[347437403,1735809056604,-37500.09,0.00022465,3]
[347437404,1735809056613,-747.85,0.00022465,3]
[347437405,1735809056623,-554.82,0.00022465,3]
[347437406,1735809056633,-1603.42,0.00022465,3]
[347437407,1735809056642,-2901.64,0.00022465,3]
[347437408,1735809056652,-3232.55,0.00022465,3]
[347437409,1735809056662,-727.24,0.00022465,3]
[347437410,1735809056671,-557.23,0.00022465,2]
[347437411,1735809056681,-1238.4,0.00022465,3]
[347437412,1735809056690,-601.84,0.00022465,3]
[347437413,1735809056700,-538.01,0.00022465,3]
[347437414,1735809056709,-500.0,0.00022465,3]
[347437415,1735809056718,-500.0,0.00022465,3]
[347437416,1735809056728,-752.69,0.00022465,3]
[347437417,1735809056737,-861.3,0.00022465,3]
[347437418,1735809056746,-500.0,0.00022465,3]
[347437419,1735809056755,-932.32,0.00022465,3]
[347437420,1735809056765,-500.0,0.00022465,3]
[347437421,1735809056775,-639.49,0.00022465,3]
[347437422,1735809056784,-500.0,0.00022465,3]
[347437423,1735809056794,-666.71,0.00022465,3]
[347437424,1735809056803,-648.33,0.00022465,3]
[347437425,1735809056813,-500.0,0.00022465,3]
[347437426,1735809056822,-1079.84,0.00022465,3]
[347437427,1735809056832,-500.0,0.00022465,3]
[347437428,1735809056841,-583.84,0.00022465,3]
[347437429,1735809056851,-500.0,0.00022465,3]
[347437430,1735809056861,-869.09954132,0.00022466,3]
[347437431,1735809056871,-2100.55948211,0.00022545,2]
[347437432,1735809056880,-1070.11754066,0.00022548,2]
[347437433,1735809056890,-951.58926009,0.0002258,60]
[347437434,1735809057119,-151.0,0.00021095,2]
[347437435,1735809057128,-655.17202303,0.0002258,60]
[347437517,1735809679532,163.750157,0.00013973,2]
[347437569,1735810235154,-150.0,0.000189,2]
[347437570,1735810235163,-264.20126332,0.00019078,2]
[347437571,1735810235174,-5164.75756255,0.00019135,2]
[347437572,1735810235184,-300.0,0.00019177,2]
[347437573,1735810235193,-298.76019381,0.00019177,2]
[347437574,1735810235203,-421.08217706,0.00019177,2]
[347437575,1735810235212,-500.0,0.00019178,2]
[347437577,1735810235222,-500.0,0.00019178,2]
[347437580,1735810235231,-500.0,0.00019178,2]
[347437584,1735810235240,-500.0,0.00019178,2]
[347437585,1735810235250,-500.0,0.00019178,2]
[347437587,1735810235259,-628.42073187,0.00019178,2]
[347437589,1735810235267,-500.0,0.00019178,2]
[347437591,1735810235276,-500.0,0.00019178,2]
[347437593,1735810235286,-500.0,0.00019178,2]
[347437595,1735810235295,-500.0,0.00019178,2]
[347437597,1735810235304,-500.0,0.00019178,2]
[347437599,1735810235313,-500.0,0.00019178,2]
[347437601,1735810235322,-500.0,0.00019178,2]
[347437603,1735810235331,-500.0,0.00019178,2]
[347437604,1735810235340,-500.0,0.00019178,2]
[347437606,1735810235349,-502.55052793,0.00019178,2]
[347437608,1735810235359,-500.0,0.00019178,2]
[347437609,1735810235367,-503.94354433,0.00019178,2]
[347437610,1735810235376,-197.86624621,0.00019178,2]
[347437611,1735810235385,-500.0,0.00019178,2]
[347437612,1735810235394,-500.0,0.00019178,2]
[347437613,1735810235403,-500.0,0.00019178,2]
[347437615,1735810235412,-500.0,0.00019178,2]
[347437616,1735810235422,-500.0,0.00019178,2]
[347437617,1735810235431,-501.19319255,0.00019178,2]
[347437618,1735810235440,-500.0,0.00019178,2]
[347437620,1735810235449,-500.0,0.00019178,2]
[347437621,1735810235458,-502.70428815,0.00019178,2]
[347437623,1735810235467,-501.68664818,0.00019178,2]
[347437625,1735810235476,-501.71655862,0.00019178,2]
[347437627,1735810235485,-500.80504033,0.00019178,2]
[347437629,1735810235494,-503.20831979,0.00019178,2]
[347437630,1735810235503,-500.0,0.00019178,2]
[347437631,1735810235512,-503.6372594,0.00019178,2]
[347437633,1735810235521,-503.09669824,0.00019178,2]
[347437634,1735810235531,-501.74420086,0.00019178,2]
[347437635,1735810235540,-501.39210558,0.00019178,2]
[347437636,1735810235549,-503.15877502,0.00019178,2]
[347437637,1735810235558,-500.0,0.00019178,2]
[347437638,1735810235567,-492.98385698,0.00019178,2]
[347437639,1735810235577,-500.0,0.00019178,2]
[347437641,1735810235586,-502.63142644,0.00019178,2]
[347437643,1735810235595,-500.0,0.00019178,2]
[347437645,1735810235604,-500.0,0.00019178,2]
[347437646,1735810235613,-500.0,0.00019178,2]
[347437647,1735810235623,-500.66877504,0.00019178,2]
[347437648,1735810235632,-499.93448225,0.00019178,2]
[347437649,1735810235641,-500.0,0.00019178,2]
[347437650,1735810235650,-503.85099415,0.00019178,2]
[347437651,1735810235660,-500.0,0.00019178,2]
[347437652,1735810235670,-501.84615049,0.00019178,2]
[347437653,1735810235679,-502.61082112,0.00019178,2]
[347437654,1735810235689,-502.8436291,0.00019178,2]
[347437655,1735810235698,-501.83909521,0.00019178,2]
[347437656,1735810235707,-589.20054992,0.00019178,2]
[347437657,1735810235716,-500.0,0.00019178,2]
[347437658,1735810235725,-500.0,0.00019178,2]
[347437659,1735810235734,-327.99448454,0.00019178,2]
[347437660,1735810235743,-500.0,0.00019178,2]
[347437661,1735810235752,-511.15044798,0.00019178,2]
[347437662,1735810235762,-500.0,0.00019178,2]
[347437663,1735810235772,-500.0,0.00019178,2]
[347437664,1735810235785,-502.21481088,0.00019178,2]
[347437665,1735810235794,-501.26616402,0.00019178,2]
[347437666,1735810235803,-500.0,0.00019178,2]
[347437667,1735810235812,-500.0,0.00019178,2]
[347437668,1735810235822,-588.50403935,0.00019178,2]
[347437669,1735810235831,-500.0,0.00019178,2]
[347437670,1735810235840,-502.69524158,0.00019178,2]
[347437671,1735810235850,-500.0,0.00019178,2]
[347437672,1735810235859,-507.4811788,0.00019178,2]
[347437673,1735810235868,-500.0,0.00019178,2]
[347437674,1735810235878,-246.55685016,0.00019178,2]
[347437675,1735810235887,-503.58616805,0.00019178,2]
[347437676,1735810235897,-502.3807951,0.00019178,2]
[347437677,1735810235906,-500.0,0.00019178,2]
[347437678,1735810235915,-500.0,0.00019178,2]
[347437679,1735810235926,-500.0,0.00019178,2]
[347437680,1735810235935,-500.0,0.00019178,2]
[347437681,1735810235944,-500.0,0.00019178,2]
[347437682,1735810235953,-500.0,0.00019178,2]
[347437683,1735810235963,-503.10959947,0.00019178,2]
[347437684,1735810235972,-502.0179948,0.00019178,2]
[347437685,1735810235981,-506.13800667,0.00019178,2]
[347437686,1735810235990,-500.42830118,0.00019178,2]
[347437687,1735810235999,-500.0,0.00019178,2]
[347437688,1735810236008,-501.83236572,0.00019178,2]
[347437689,1735810236017,-500.0,0.00019178,2]
[347437690,1735810236026,-566.93483587,0.00019178,2]
[347437691,1735810236035,-500.0,0.00019178,2]
[347437692,1735810236044,-501.18156585,0.00019178,2]
[347437693,1735810236053,-503.96798904,0.00019178,2]
[347437694,1735810236062,-500.0,0.00019178,2]
[347437695,1735810236072,-503.20815363,0.00019178,2]
[347437696,1735810236081,-502.67344465,0.00019178,2]
[347437697,1735810236090,-500.0,0.00019178,2]
[347437698,1735810236099,-260.30023074,0.00019178,2]
[347437699,1735810236108,-500.0,0.00019178,2]
[347437700,1735810236117,-500.0,0.00019178,2]
[347437701,1735810236126,-500.0,0.00019178,2]
[347437702,1735810236135,-501.12176023,0.00019178,2]
[347437703,1735810236144,-500.0,0.00019178,2]
[347437704,1735810236154,-500.0,0.00019178,2]
[347437705,1735810236163,-326.29993569,0.00019178,2]
[347437706,1735810236173,-506.19760019,0.00019178,2]
[347437707,1735810236182,-504.49525942,0.00019178,2]
[347437708,1735810236192,-445.29549241,0.00019178,2]
[347437709,1735810236201,-500.0,0.00019178,2]
[347437710,1735810236210,-500.0,0.00019178,2]
[347437711,1735810236219,-500.0,0.00019178,2]
[347437712,1735810236228,-500.0,0.00019178,2]
[347437713,1735810236237,-500.0,0.00019178,2]
[347437714,1735810236246,-500.0,0.00019178,2]
[347437715,1735810236255,-500.0,0.00019178,2]
[347437716,1735810236264,-500.0,0.00019178,2]
[347437717,1735810236273,-507.10699328,0.00019178,2]
[347437718,1735810236283,-500.0,0.00019178,2]
[347437719,1735810236292,-502.28575414,0.00019178,2]
[347437720,1735810236301,-500.0,0.00019178,2]
[347437721,1735810236311,-500.0,0.00019178,2]
[347437722,1735810236320,-501.42521116,0.00019178,2]
[347437723,1735810236329,-501.45954815,0.00019178,2]
[347437724,1735810236338,-500.0,0.00019178,2]
[347437725,1735810236347,-501.43851034,0.00019178,2]
[347437726,1735810236356,-500.0,0.00019178,2]
[347437727,1735810236365,-500.0,0.00019178,2]
[347437728,1735810236375,-425.75133628,0.00019178,2]
[347437729,1735810236384,-500.49862638,0.00019178,2]
[347437730,1735810236392,-500.0,0.00019178,2]
[347437731,1735810236401,-500.0,0.00019178,2]
[347437732,1735810236410,-502.56048489,0.00019178,2]
[347437733,1735810236419,-500.0,0.00019178,2]
[347437734,1735810236428,-500.0,0.00019178,2]
[347437735,1735810236437,-500.0,0.00019178,2]
[347437736,1735810236446,-502.04106863,0.00019178,2]
[347437737,1735810236455,-500.0,0.00019178,2]
[347437738,1735810236464,-500.0,0.00019178,2]
[347437739,1735810236473,-500.0,0.00019178,2]
[347437740,1735810236482,-500.0,0.00019178,2]
[347437741,1735810236491,-500.0,0.00019178,2]
[347437742,1735810236500,-250.75925348,0.00019178,2]